bitfinex-derivatives/quotes_BTCF0:USTF0_20250704
["timestamp","ask_amount","ask_price","bid_price","bid_amount"]
[1751598725906,0.7876306,109270.0,109260.0,0.86742192]
[1751598726106,1.8565106,109270.0,109260.0,0.86742192]
[1751598726905,1.3417692,109270.0,109260.0,1.11628332]
[1751598727108,1.3417692,109270.0,109260.0,1.09270916]
[1751598727910,1.3417692,109270.0,109260.0,0.84384776]
[1751598728611,1.3417692,109270.0,109260.0,0.89852192]
[1751598729816,1.3417692,109270.0,109260.0,0.86192156]
[1751598730206,1.3417692,109270.0,109260.0,0.89850932]
[1751598730608,1.5906306,109270.0,109260.0,0.89850932]
[1751598735425,1.6225306,109270.0,109260.0,0.89850932]
[1751598738429,1.6225306,109270.0,109260.0,0.86740932]
[1751598739223,1.6225306,109270.0,109260.0,0.81273516]
[1751598740637,1.3736692,109270.0,109260.0,0.81273516]
[1751598740932,1.6225306,109270.0,109260.0,0.81273516]
[1751598741737,0.7867306,109270.0,109260.0,0.81273516]
[1751598741928,1.6223706,109270.0,109260.0,0.81273516]
[1751598743024,1.6223306,109270.0,109260.0,0.81273516]
[1751598743829,0.7867306,109270.0,109260.0,0.81273516]
[1751598744031,1.6223306,109270.0,109260.0,0.81273516]
[1751598746234,0.7867306,109270.0,109260.0,0.81273516]
[1751598746434,1.6222906,109270.0,109260.0,0.81273516]
[1751598746834,1.6222906,109270.0,109260.0,0.56387376]
[1751598747035,1.6222906,109270.0,109260.0,0.81273516]
[1751598747437,0.7867306,109270.0,109260.0,0.81273516]
[1751598747629,1.6222906,109270.0,109260.0,0.81273516]
[1751598747825,1.6548906,109270.0,109260.0,0.81273516]
[1751598749235,1.6548906,109270.0,109260.0,0.83082156]
[1751598749435,1.6548906,109270.0,109260.0,0.80052156]
[1751598749735,0.8511306,109270.0,109260.0,0.80052156]
[1751598750135,1.6866506,109270.0,109260.0,0.80052156]
[1751598751633,1.4377892,109270.0,109260.0,0.80052156]
[1751598751834,1.6866506,109270.0,109260.0,0.80052156]
[1751598752035,0.8511306,109270.0,109260.0,0.80052156]
[1751598752332,1.6866106,109270.0,109260.0,0.80052156]
[1751598753038,0.8511306,109270.0,109260.0,0.80052156]
[1751598753238,1.6866106,109270.0,109260.0,0.80052156]
[1751598761142,1.6866106,109270.0,109260.0,0.55166016]
[1751598761341,1.6866106,109270.0,109260.0,0.80052156]
[1751598778953,1.4377492,109270.0,109260.0,0.80052156]
[1751598779154,1.6866106,109270.0,109260.0,0.80052156]
[1751598785158,0.8511306,109270.0,109260.0,1.04938296]
[1751598785459,1.6861706,109270.0,109260.0,1.04938296]
[1751598789262,1.6861706,109270.0,109260.0,1.08599729]
[1751598790463,1.6861706,109270.0,109260.0,1.03132313]
[1751598791357,1.6861706,109270.0,109260.0,0.78246173]
[1751598792258,1.6861706,109270.0,109260.0,0.53360033]
[1751598792458,1.6861706,109270.0,109260.0,0.78246173]
[1751598792964,1.6861706,109270.0,109260.0,0.79988049]
[1751598799371,1.6861706,109270.0,109260.0,0.85455465]
[1751598802070,1.6861706,109270.0,109260.0,0.81794032]
[1751598802272,1.6861706,109270.0,109260.0,0.85455372]
[1751598802966,1.6861706,109270.0,109260.0,0.81794032]
[1751598803674,0.8511306,109270.0,109260.0,0.81794032]
[1751598803872,1.6858906,109270.0,109260.0,0.79987955]
[1751598805273,1.934752,109270.0,109260.0,0.23801815]
[1751598806771,1.934752,109270.0,109260.0,0.28801815]
[1751598807173,1.6858906,109270.0,109260.0,0.28801815]
[1751598807565,1.6858906,109270.0,109260.0,0.30801815]
[1751598808167,1.6858906,109270.0,109260.0,0.29801815]
[1751598809170,1.6858906,109270.0,109260.0,0.28059939]
[1751598809369,1.6858906,109270.0,109260.0,0.29816385]
[1751598809868,1.6858906,109270.0,109260.0,0.28059939]
[1751598810073,1.6858906,109270.0,109260.0,0.29778227]
[1751598813574,1.6858906,109270.0,109260.0,0.23778227]
[1751598813773,1.6858906,109270.0,109260.0,0.28778227]
[1751598814074,1.6858906,109270.0,109260.0,0.53778227]
[1751598818774,1.6858906,109270.0,109260.0,0.23778227]
[1751598818981,1.6858906,109270.0,109260.0,0.86131783]
[1751598819280,1.6858906,109270.0,109260.0,0.80664367]
[1751598824583,1.9186506,109270.0,109260.0,0.80664367]
[1751598826784,1.6697892,109270.0,109260.0,0.80664367]
[1751598826985,1.9186506,109270.0,109260.0,0.80664367]
[1751598828487,1.8868506,109270.0,109260.0,0.69964367]
[1751598828782,1.3722292,109270.0,109260.0,0.98160507]
[1751598829082,0.003,109270.0,109260.0,1.03016584]
[1751598829385,0.003,109270.0,109260.0,1.06675863]
[1751598829980,0.003,109270.0,109260.0,1.31562003]
[1751598830186,0.003,109270.0,109260.0,1.09675863]
[1751598830580,0.003,109270.0,109260.0,1.40675863]
[1751598830785,0.003,109270.0,109260.0,1.37016584]
[1751598832081,0.002,109280.0,109270.0,0.1829693]
[1751598832384,0.302,109280.0,109270.0,1.04196035]
[1751598833088,0.305,109280.0,109270.0,1.04296035]
[1751598833386,0.307,109280.0,109270.0,0.79409895]
[1751598834484,0.307,109280.0,109270.0,0.80334215]
[1751598835679,0.307,109280.0,109270.0,0.84334215]
[1751598835978,0.017,109280.0,109270.0,0.84334215]
[1751598836888,0.007,109280.0,109270.0,0.84334215]
[1751598837282,0.007,109280.0,109270.0,1.09220355]
[1751598837683,0.007,109280.0,109270.0,0.84334215]
[1751598839286,0.007,109280.0,109270.0,0.86144806]
[1751598840192,0.007,109280.0,109270.0,0.82144806]
[1751598841588,0.007,109280.0,109270.0,0.85796221]
[1751598841896,0.007,109280.0,109270.0,0.82144806]
[1751598842097,0.007,109280.0,109270.0,0.85244806]
[1751598846299,0.007,109280.0,109270.0,1.10130946]
[1751598846610,0.2743943,109300.0,109290.0,0.1829358]
[1751598846905,0.9348557,109300.0,109290.0,0.80969613]
[1751598847398,0.8891228,109300.0,109290.0,0.80969613]
[1751598847610,0.8931228,109300.0,109290.0,0.80969613]
[1751598847902,0.4156,109300.0,109290.0,0.80969613]
[1751598850608,0.4186,109300.0,109290.0,0.81069613]
[1751598851000,0.601519,109300.0,109290.0,0.81069613]
[1751598852206,0.561519,109300.0,109290.0,0.81069613]
[1751598852409,1.0592418,109300.0,109290.0,0.53043473]
[1751598852605,1.0918418,109300.0,109290.0,0.4939358]
[1751598852807,1.0918418,109300.0,109290.0,0.311]
[1751598853009,0.1829693,109270.0,109260.0,0.07289889]
[1751598853206,1.6055507,109270.0,109260.0,0.21947767]
[1751598853418,1.6692507,109270.0,109260.0,0.182986]
[1751598853712,1.6692507,109270.0,109260.0,0.7518474]
[1751598855208,1.6702507,109270.0,109260.0,0.7538474]
[1751598855709,1.6702507,109270.0,109260.0,0.79033907]
[1751598855911,1.4213893,109270.0,109260.0,0.54147767]
[1751598856210,1.4537893,109270.0,109260.0,0.54147767]
[1751598856405,1.4537893,109270.0,109260.0,0.79031498]
[1751598856610,1.4537893,109270.0,109260.0,0.54147767]
[1751598857210,1.4537893,109270.0,109260.0,0.504986]
[1751598857411,1.4537893,109270.0,109260.0,0.54147767]
[1751598861815,1.4537893,109270.0,109260.0,0.79031498]
[1751598865319,1.1137893,109270.0,109260.0,0.79031498]
[1751598865615,1.4337893,109270.0,109260.0,0.79031498]
[1751598870019,1.4337893,109270.0,109260.0,0.54147767]
[1751598870220,1.4337893,109270.0,109260.0,0.79031498]
[1751598870621,1.1137893,109270.0,109260.0,0.79031498]
[1751598870813,1.4937893,109270.0,109260.0,0.79031498]
[1751598871216,1.4937893,109270.0,109260.0,0.82291498]
[1751598871623,1.31082,109270.0,109260.0,0.82291498]
[1751598871818,1.4937892,109270.0,109260.0,0.82291498]
[1751598877124,1.1137892,109270.0,109260.0,0.82291498]
[1751598877325,1.4211892,109270.0,109260.0,0.82291498]
[1751598878526,1.4211892,109270.0,109260.0,0.57407767]
[1751598878823,1.4211892,109270.0,109260.0,0.82291498]
[1751598879125,1.4211892,109270.0,109260.0,0.8776397]
[1751598879322,1.4211892,109270.0,109260.0,0.82291498]
[1751598882135,1.4211892,109270.0,109260.0,0.8776397]
[1751598884229,1.4211892,109270.0,109260.0,0.84114803]
[1751598885432,1.0811892,109270.0,109260.0,0.84114803]
[1751598889436,1.3911892,109270.0,109260.0,0.8593222]
[1751598889739,1.3911892,109270.0,109260.0,1.10808653]
[1751598890536,1.0811892,109270.0,109260.0,1.10808653]
[1751598890736,1.3911892,109270.0,109260.0,1.10808653]
[1751598893036,1.0811892,109270.0,109260.0,1.10808653]
[1751598893237,1.4011892,109270.0,109260.0,1.10808653]
[1751598896941,1.4011892,109270.0,109260.0,1.09010096]
[1751598900133,1.0811892,109270.0,109260.0,1.09010096]
[1751598907842,1.4111892,109270.0,109260.0,1.03518764]
[1751598908043,1.4111892,109270.0,109260.0,1.10808653]
[1751598908242,1.4111892,109270.0,109260.0,0.61048489]
[1751598908445,1.4111892,109270.0,109260.0,1.10808653]
[1751598909941,1.0811892,109270.0,109260.0,1.10808653]
[1751598910242,1.4011892,109270.0,109260.0,1.03518764]
[1751598912343,1.4011892,109270.0,109260.0,1.10808653]
[1751598919344,1.4011892,109270.0,109260.0,1.0901104]
[1751598924453,1.4011892,109270.0,109260.0,0.59250876]
[1751598924752,1.4011892,109270.0,109260.0,1.0901104]
[1751598925055,1.4335892,109270.0,109260.0,1.0901104]
[1751598925253,1.1135892,109270.0,109260.0,1.0901104]
[1751598925442,1.4335892,109270.0,109260.0,1.0901104]
[1751598929355,1.4335892,109270.0,109260.0,1.10808653]
[1751598938860,1.4335892,109270.0,109260.0,0.61048489]
[1751598939069,1.4335892,109270.0,109260.0,1.10808653]
[1751598941162,1.1135892,109270.0,109260.0,1.10808653]
[1751598941471,1.4635892,109270.0,109260.0,1.10808653]
[1751598941952,1.4235892,109270.0,109260.0,1.10808653]
[1751598949875,1.67239002,109270.0,109260.0,0.85928571]
[1751598950479,1.67239002,109270.0,109260.0,0.63280992]
[1751598950685,1.67239002,109270.0,109260.0,0.55991103]
[1751598951184,1.67239002,109270.0,109260.0,0.80871185]
[1751598952980,1.68133966,109270.0,109260.0,0.55991103]
[1751598953180,1.68133966,109270.0,109260.0,0.80871185]
[1751598954387,1.67239002,109270.0,109260.0,0.80871185]
[1751598955288,1.68163293,109270.0,109260.0,0.80871185]
[1751598958792,1.67239002,109270.0,109260.0,0.80871185]
[1751598958990,1.1135892,109270.0,109260.0,0.80871185]
[1751598959190,1.69239002,109270.0,109260.0,0.80871185]
[1751598961781,1.1135892,109270.0,109260.0,0.80871185]
[1751598961985,1.70239002,109270.0,109260.0,0.80871185]
[1751598967490,1.70239002,109270.0,109260.0,0.55991103]
[1751598967697,1.95119084,109270.0,109260.0,0.55991103]
[1751598967998,1.70239002,109270.0,109260.0,0.55991103]
[1751598969196,1.70239002,109270.0,109260.0,0.80871185]
[1751598969397,1.70239002,109270.0,109260.0,0.7903932]
[1751598970995,1.70239002,109270.0,109260.0,0.84531823]
[1751598975906,1.70239002,109270.0,109260.0,0.59651741]
[1751598976099,1.70239002,109270.0,109260.0,0.84531823]
[1751598976301,1.70239002,109270.0,109260.0,0.59651741]
[1751598977407,1.70239002,109270.0,109260.0,0.61368733]
[1751598979403,1.70239002,109270.0,109260.0,0.82588177]
[1751598983814,1.70239002,109270.0,109260.0,0.57708095]
[1751598985808,1.70239002,109270.0,109260.0,0.82588177]
[1751598988131,1.70239002,109270.0,109260.0,0.57708095]
[1751598988414,1.70239002,109270.0,109260.0,0.82588177]
[1751598991717,1.70239002,109270.0,109260.0,0.57708095]
[1751598991916,1.70239002,109270.0,109260.0,0.82588177]
[1751598992420,1.70239002,109270.0,109260.0,0.57708095]
[1751598992610,1.70239002,109270.0,109260.0,0.82588177]
[1751598996023,1.70239002,109270.0,109260.0,0.57708095]
[1751598996323,1.70239002,109270.0,109260.0,0.82588177]
[1751598999628,1.93427002,109270.0,109260.0,0.57708095]
[1751599001428,1.6854692,109270.0,109260.0,0.57708095]
[1751599001627,1.93427002,109270.0,109260.0,0.57708095]
[1751599002227,1.93427002,109270.0,109260.0,0.86249902]
[1751599004224,1.93427002,109270.0,109260.0,0.89459902]
[1751599004421,1.70239002,109270.0,109260.0,0.89459902]
[1751599006226,1.70239002,109270.0,109260.0,0.85798177]
[1751599011535,0.86867002,109270.0,109260.0,0.85798177]
[1751599011833,1.70003002,109270.0,109260.0,0.85798177]
[1751599012432,1.70003002,109270.0,109260.0,0.60918095]
[1751599012733,1.70003002,109270.0,109260.0,0.85798177]
[1751599015831,1.70003002,109270.0,109260.0,0.80871185]
[1751599016048,1.70003002,109270.0,109260.0,0.57723156]
[1751599016337,1.70003002,109270.0,109260.0,0.55991103]
[1751599017336,1.70003002,109270.0,109260.0,0.57722843]
[1751599018431,1.70003002,109270.0,109260.0,0.25722843]
[1751599019441,1.70003002,109270.0,109260.0,0.29384568]
[1751599023839,1.70003002,109270.0,109260.0,0.27652828]
[1751599024338,1.70003002,109270.0,109260.0,0.29388669]
[1751599026043,1.70003002,109270.0,109260.0,0.54268751]
[1751599029338,1.70003002,109270.0,109260.0,0.50607026]
[1751599029537,0.2163692,109270.0,109260.0,1.02487108]
[1751599029742,1.0150092,109270.0,109260.0,1.03524605]
[1751599029938,0.1839692,109270.0,109260.0,1.06804605]
[1751599030249,1.0150092,109270.0,109260.0,1.14094494]
[1751599030440,1.0150092,109270.0,109260.0,1.15026507]
[1751599030832,0.1839692,109270.0,109260.0,1.15026507]
[1751599031137,1.0150092,109270.0,109260.0,1.15026507]
[1751599031437,1.0150092,109270.0,109260.0,1.07736618]
[1751599031738,1.0150092,109270.0,109260.0,1.06000777]
[1751599031943,1.0150092,109270.0,109260.0,1.07723445]
[1751599035349,1.0150092,109270.0,109260.0,1.07724117]
[1751599036851,1.0150092,109270.0,109260.0,1.06792104]
[1751599039043,1.0150092,109270.0,109260.0,1.12281691]
[1751599041453,1.3250092,109270.0,109260.0,1.12281691]
[1751599045150,1.3572092,109270.0,109260.0,1.12281691]
[1751599049259,1.3572092,109270.0,109260.0,1.06792104]
[1751599050460,1.3572092,109270.0,109260.0,1.03512104]
[1751599054486,0.0332,109270.0,109260.0,1.03512104]
[1751599054664,0.86384,109270.0,109260.0,1.34512104]
[1751599054853,0.86384,109270.0,109260.0,1.03512104]
[1751599055463,0.0332,109270.0,109260.0,1.03512104]
[1751599056763,0.0332,109270.0,109260.0,1.10801993]
[1751599057266,0.0332,109270.0,109260.0,1.03512104]
[1751599059366,0.0332,109270.0,109260.0,1.09001138]
[1751599060465,0.0332,109270.0,109260.0,1.33871138]
[1751599060667,0.001,109270.0,109260.0,1.33871138]
[1751599060862,0.001,109270.0,109260.0,1.37121138]
[1751599061763,0.0319,109270.0,109260.0,1.40780138]
[1751599064672,0.0319,109270.0,109260.0,1.37121138]
[1751599066476,0.0319,109270.0,109260.0,1.12251138]
[1751599066778,0.0319,109270.0,109260.0,1.12351138]
[1751599071477,0.0319,109270.0,109260.0,1.06862104]
[1751599072274,0.0319,109270.0,109260.0,1.31832104]
[1751599073290,0.0319,109270.0,109260.0,1.39121993]
[1751599074578,0.0319,109270.0,109260.0,1.35871993]
[1751599076080,0.0319,109270.0,109260.0,1.34148653]
[1751599076582,0.0319,109270.0,109260.0,1.26858764]
[1751599079277,0.0319,109270.0,109260.0,0.770986]
[1751599079581,0.0319,109270.0,109260.0,1.26858764]
[1751599080982,0.0319,109270.0,109260.0,1.32858764]
[1751599083182,0.0319,109270.0,109260.0,1.40148653]
[1751599089286,1e-08,109270.0,109260.0,1.65028735]
[1751599089488,1e-08,109270.0,109260.0,2.0308246]
[1751599090282,1e-08,109270.0,109260.0,2.5308246]
[1751599090483,1e-08,109270.0,109260.0,2.43938846]
[1751599091188,1e-08,109270.0,109260.0,2.51256922]
[1751599091386,1e-08,109270.0,109260.0,2.43938846]
[1751599092982,1e-08,109270.0,109260.0,2.7138646]
[1751599094696,0.86098,109300.0,109290.0,0.1829359]
[1751599094995,1.24348,109300.0,109290.0,0.75657856]
[1751599095189,1.24348,109300.0,109290.0,0.7931276]
[1751599095587,0.4134,109300.0,109290.0,0.54432678]
[1751599095894,0.4134,109300.0,109290.0,0.79926928]
[1751599096091,0.1964,109300.0,109290.0,1.0480701]
[1751599096288,0.1994,109300.0,109290.0,1.0807701]
[1751599097596,0.136,109300.0,109290.0,1.0807701]
[1751599097793,0.136,109300.0,109290.0,1.1108701]
[1751599099496,0.006,109300.0,109290.0,1.9408301]
[1751599099695,0.0985,109310.0,109300.0,0.1829192]
[1751599099895,0.2685,109310.0,109300.0,1.12336203]
[1751599101098,0.2735,109310.0,109300.0,1.12436203]
[1751599101502,0.2775,109310.0,109300.0,1.12436203]
[1751599102200,0.2775,109310.0,109300.0,1.06952019]
[1751599102901,0.1075,109310.0,109300.0,1.06952019]
[1751599104697,0.009,109310.0,109300.0,1.06952019]
[1751599105094,0.009,109310.0,109300.0,1.10262019]
[1751599105302,0.0974,109320.0,109310.0,0.1829025]
[1751599105498,0.3174,109320.0,109310.0,0.74170332]
[1751599107201,0.3204,109320.0,109310.0,0.74170332]
[1751599108102,0.3234,109320.0,109310.0,0.74170332]
[1751599108408,0.75408662,109320.0,109310.0,0.74170332]
[1751599108909,0.75108662,109320.0,109310.0,0.74170332]
[1751599110009,0.56820082,109320.0,109310.0,0.74170332]
[1751599110607,0.5022857,109320.0,109310.0,0.74170332]
[1751599110812,0.56820082,109320.0,109310.0,0.74170332]
[1751599111008,0.75108652,109320.0,109310.0,0.74170332]
[1751599111216,0.2286675,109300.0,109280.0,0.06939935]
[1751599111405,0.31210082,109290.0,109280.0,0.55518945]
[1751599111712,0.0948,109290.0,109280.0,1.01629174]
[1751599112106,0.0948,109290.0,109280.0,1.05801039]
[1751599112609,0.0948,109290.0,109280.0,1.05079174]
[1751599113207,0.0948,109290.0,109280.0,1.08729109]
[1751599113411,0.0948,109290.0,109280.0,1.09229109]
[1751599115720,0.0948,109290.0,109280.0,1.10133648]
[1751599117818,0.0948,109290.0,109280.0,1.09229109]
[1751599119320,0.0948,109290.0,109280.0,1.14713293]
[1751599119515,0.0948,109290.0,109280.0,1.12891419]
[1751599121317,0.0948,109290.0,109280.0,1.15961419]
[1751599125230,0.0633,109290.0,109280.0,1.15961419]
[1751599127930,0.0318,109290.0,109280.0,1.15961419]
[1751599128134,0.0318,109290.0,109280.0,1.19161419]
[1751599136437,1.60191132,109300.0,109290.0,0.1829359]
[1751599136731,1.94511132,109300.0,109290.0,0.76651717]
[1751599136931,1.89938082,109300.0,109290.0,0.76651717]
[1751599137728,1.89938082,109300.0,109290.0,0.71173672]
[1751599138434,1.89938082,109300.0,109290.0,0.71273672]
[1751599140311,1.89938082,109300.0,109290.0,0.76756959]
[1751599140936,1.89938082,109300.0,109290.0,0.77056959]
[1751599141435,1.89938082,109300.0,109290.0,0.78884721]
[1751599142532,1.90938082,109300.0,109290.0,0.77060663]
[1751599148041,0.0965,109300.0,109290.0,1.01940745]
[1751599148341,0.002,109320.0,109310.0,0.1829025]
[1751599148537,0.97486,109320.0,109310.0,1.03706798]
[1751599148737,0.94266,109320.0,109310.0,1.15391375]
[1751599149040,0.94266,109320.0,109310.0,0.86854909]
[1751599149434,0.94266,109320.0,109310.0,0.90507872]
[1751599149631,0.082,109320.0,109310.0,1.15387954]
[1751599149834,0.91256,109320.0,109310.0,1.15387954]
[1751599150243,0.91256,109320.0,109310.0,1.15386294]
[1751599150939,0.91248,109320.0,109310.0,1.15386294]
[1751599151543,0.91448,109320.0,109310.0,0.90506212]
[1751599156442,0.91448,109320.0,109310.0,0.85021635]
[1751599157352,0.085,109320.0,109310.0,1.09901717]
[1751599157647,0.085,109320.0,109310.0,0.90506212]
[1751599157848,0.085,109320.0,109310.0,0.86854909]
[1751599158045,0.085,109320.0,109310.0,0.87768033]
[1751599158246,0.085,109320.0,109310.0,1.12648115]
[1751599158441,0.085,109320.0,109310.0,1.16294315]
[1751599158637,0.085,109320.0,109310.0,1.12648115]
[1751599159342,0.085,109320.0,109310.0,1.16294616]
[1751599159544,0.085,109320.0,109310.0,1.10810039]
[1751599160646,0.085,109320.0,109310.0,0.85929957]
[1751599161637,0.085,109320.0,109310.0,0.82283456]
[1751599161841,0.015,109320.0,109310.0,0.77370332]
[1751599163147,0.015,109320.0,109310.0,0.78281531]
[1751599163640,0.325,109320.0,109310.0,0.78281531]
[1751599163845,0.015,109320.0,109310.0,0.78281531]
[1751599164059,0.015,109320.0,109310.0,1.03161613]
[1751599164652,0.005,109320.0,109310.0,1.03161613]
[1751599165247,0.005,109320.0,109310.0,1.08161613]
[1751599166946,0.005,109320.0,109310.0,1.45161613]
[1751599168453,0.005,109320.0,109310.0,1.48808114]
[1751599169552,0.005,109320.0,109310.0,1.5064619]
[1751599169953,0.005,109320.0,109310.0,1.7551619]
[1751599170756,0.004,109320.0,109310.0,1.7551619]
[1751599171555,0.002,109320.0,109310.0,1.7551619]
[1751599172653,0.002,109320.0,109310.0,1.7862619]
[1751599172957,0.002,109320.0,109310.0,1.73141613]
[1751599173759,0.002,109320.0,109310.0,1.78610259]
[1751599174460,0.002,109320.0,109310.0,1.83610259]
[1751599175261,0.002,109320.0,109310.0,1.78141613]
[1751599176860,0.002,109320.0,109310.0,1.83614166]
[1751599177262,0.002,109320.0,109310.0,1.78141613]
[1751599178163,0.27427,109350.0,109340.0,0.1828523]
[1751599178360,0.49784357,109350.0,109340.0,0.99045394]
[1751599178561,0.43474357,109350.0,109340.0,0.99045394]
[1751599178762,0.43474357,109350.0,109340.0,1.08635394]
[1751599178963,0.3606,109350.0,109340.0,1.08635394]
[1751599179157,0.3606,109350.0,109340.0,1.12285853]
[1751599179361,0.4237,109350.0,109340.0,1.09185853]
[1751599179565,0.4297,109350.0,109340.0,1.09285853]
[1751599181064,0.4237,109350.0,109340.0,1.09185853]
[1751599181265,0.4257,109350.0,109340.0,1.09185853]
[1751599181465,0.4297,109350.0,109340.0,1.09185853]
[1751599181867,0.3666,109350.0,109340.0,1.09185853]
[1751599182172,0.332,109350.0,109340.0,1.09185853]
[1751599182368,0.113,109350.0,109340.0,1.09185853]
[1751599183065,0.113,109350.0,109340.0,1.14661542]
[1751599185269,0.113,109350.0,109340.0,1.09185853]
[1751599185667,0.113,109350.0,109340.0,1.14661542]
[1751599187268,0.113,109350.0,109340.0,1.09185853]
[1751599189069,0.002,109360.0,109350.0,0.1828356]
[1751599189273,0.272,109360.0,109350.0,1.0916481]
[1751599189467,0.002,109360.0,109350.0,0.84284728]
[1751599190473,0.002,109360.0,109350.0,0.59404646]
[1751599190667,0.002,109360.0,109350.0,0.84284728]
[1751599190864,0.035,109360.0,109350.0,0.84284728]
[1751599191059,0.035,109360.0,109350.0,0.81224728]
[1751599191060,0.66380082,109360.0,109350.0,0.81224728]
[1751599191465,0.69740082,109360.0,109350.0,0.81224728]
[1751599191972,0.69740082,109360.0,109350.0,0.56344646]
[1751599192174,0.4496,109360.0,109350.0,0.81224728]
[1751599193369,0.4496,109360.0,109350.0,0.77583642]
[1751599193670,0.0696,109360.0,109350.0,0.81224728]
[1751599193871,0.0696,109360.0,109350.0,0.81183089]
[1751599194672,0.0696,109360.0,109350.0,0.77542003]
[1751599201291,0.252419,109360.0,109350.0,0.71122003]
[1751599201487,0.90100343,109360.0,109350.0,0.4628357]
[1751599203393,0.90000343,109360.0,109350.0,0.4638357]
[1751599203688,0.89900343,109360.0,109350.0,0.4638357]
[1751599204485,0.650619,109360.0,109350.0,0.4638357]
[1751599204679,0.89900343,109360.0,109350.0,0.4638357]
[1751599210696,0.650619,109360.0,109350.0,0.4638357]
[1751599212297,0.650619,109360.0,109350.0,0.50024656]
[1751599212595,0.89900343,109360.0,109350.0,0.50024656]
[1751599214292,0.89900343,109360.0,109350.0,0.4638357]
[1751599215598,0.89900343,109360.0,109350.0,0.50024656]
[1751599216900,1.72788343,109360.0,109350.0,0.50024656]
[1751599217198,1.479499,109360.0,109350.0,0.50024656]
[1751599217401,1.72788343,109360.0,109350.0,0.50024656]
[1751599219502,1.72788343,109360.0,109350.0,0.4638357]
[1751599222305,1.72788343,109360.0,109350.0,0.50024656]
[1751599223905,1.479499,109360.0,109350.0,0.74869204]
[1751599224104,1.97638996,109360.0,109350.0,0.74869204]
[1751599224404,1.72794448,109360.0,109350.0,0.74869204]
[1751599224702,1.69774448,109360.0,109350.0,0.74869204]
[1751599224905,1.69774448,109360.0,109350.0,0.81269204]
[1751599225103,1.449299,109360.0,109350.0,0.81269204]
[1751599225303,1.69774448,109360.0,109350.0,0.81269204]
[1751599226808,1.66514448,109360.0,109350.0,0.81269204]
[1751599227005,1.46514448,109360.0,109350.0,0.84419204]
[1751599227306,1.61514448,109360.0,109350.0,0.84419204]
[1751599227805,1.61514448,109360.0,109350.0,0.81269204]
[1751599228005,1.64534448,109360.0,109350.0,0.81269204]
[1751599229606,1.64534448,109360.0,109350.0,0.86744893]
[1751599231208,1.92588996,109360.0,109350.0,0.86744893]
[1751599231429,1.92588996,109360.0,109350.0,0.81269204]
[1751599233005,1.92588996,109360.0,109350.0,0.86744893]
[1751599233306,1.92588996,109360.0,109350.0,0.81269204]
[1751599238410,1.92588996,109360.0,109350.0,0.86744893]
[1751599242108,1.92588996,109360.0,109350.0,0.58820345]
[1751599242610,1.428999,109360.0,109350.0,0.58820345]
[1751599242806,1.67744448,109360.0,109350.0,0.58820345]
[1751599243006,1.67744448,109360.0,109350.0,0.83664893]
[1751599243207,1.67744448,109360.0,109350.0,0.58820345]
[1751599243409,1.67744448,109360.0,109350.0,0.83664893]
[1751599249418,1.67744448,109360.0,109350.0,0.86684893]
[1751599249617,1.67744448,109360.0,109350.0,0.77568118]
[1751599249922,1.428999,109360.0,109350.0,0.77568118]
[1751599250216,1.67744448,109360.0,109350.0,0.77568118]
[1751599251119,1.428999,109360.0,109350.0,0.77568118]
[1751599251320,1.64534448,109360.0,109350.0,0.77568118]
[1751599251718,1.58214438,109360.0,109350.0,0.81209204]
[1751599251918,1.58214438,109360.0,109350.0,0.84499204]
[1751599252815,0.9208,109360.0,109350.0,1.05702666]
[1751599253117,0.092,109360.0,109350.0,1.09343752]
[1751599253320,0.092,109360.0,109350.0,1.14819441]
[1751599253523,0.092,109360.0,109350.0,1.43178355]
[1751599254119,0.002,109360.0,109350.0,1.47178355]
[1751599258335,0.002,109360.0,109350.0,1.11178355]
[1751599258615,0.002,109360.0,109350.0,0.86333807]
[1751599259727,0.002,109360.0,109350.0,0.88149646]
[1751599262527,0.002,109360.0,109350.0,0.80858118]
[1751599263230,0.002,109360.0,109350.0,1.05702666]
[1751599264921,0.90310937,109370.0,109360.0,0.182819]
[1751599265128,1.19310937,109370.0,109360.0,1.05906862]
[1751599265328,1.19310937,109370.0,109360.0,1.12246862]
[1751599265629,1.19310937,109370.0,109360.0,1.1316266]
[1751599265831,1.19310937,109370.0,109360.0,0.63473564]
[1751599266032,1.37591157,109370.0,109360.0,1.1316266]
[1751599266223,1.19410937,109370.0,109360.0,1.1316266]
[1751599266533,1.40771157,109370.0,109360.0,1.1316266]
[1751599267534,1.65615705,109370.0,109360.0,1.12246862]
[1751599267924,1.65675705,109370.0,109360.0,1.12246862]
[1751599269631,1.65775705,109370.0,109360.0,1.12246862]
[1751599270633,1.47495485,109370.0,109360.0,1.12246862]
[1751599271331,1.22650937,109370.0,109360.0,1.12246862]
[1751599271624,1.19570937,109370.0,109360.0,1.12246862]
[1751599273034,1.19570937,109370.0,109360.0,1.09076862]
[1751599273224,1.22610937,109370.0,109360.0,1.09076862]
[1751599273427,1.22610937,109370.0,109360.0,1.14545662]
[1751599273726,1.22610937,109370.0,109360.0,1.09076862]
[1751599276135,1.19638937,109370.0,109360.0,1.14545662]
[1751599276433,1.19638937,109370.0,109360.0,1.17815662]
[1751599276838,1.19638937,109370.0,109360.0,1.14169796]
[1751599277038,0.36530937,109370.0,109360.0,1.14169796]
[1751599279736,0.36530937,109370.0,109360.0,0.644807]
[1751599279942,0.36530937,109370.0,109360.0,1.14169796]
[1751599280240,0.39720937,109370.0,109360.0,1.14169796]
[1751599280841,0.13720937,109370.0,109360.0,1.14169796]
[1751599281741,0.13720937,109370.0,109360.0,1.10899796]
[1751599282144,0.17000937,109370.0,109360.0,1.10899796]
[1751599282833,0.52000937,109370.0,109360.0,1.10899796]
[1751599283033,0.10530937,109370.0,109360.0,0.612107]
[1751599283240,0.10530937,109370.0,109360.0,1.74774344]
[1751599283440,0.10530937,109370.0,109360.0,1.69305544]
[1751599283937,0.02699934,109370.0,109360.0,1.76597072]
[1751599284146,0.002,109370.0,109360.0,1.76597072]
[1751599284350,0.0769501,109370.0,109360.0,1.76597072]
[1751599284639,0.002,109370.0,109360.0,1.76597072]
[1751599284940,0.001,109370.0,109360.0,1.76697072]
[1751599285745,0.001,109370.0,109360.0,1.26989895]
[1751599285937,0.001,109370.0,109360.0,2.36472362]
[1751599286137,0.94296,109390.0,109380.0,0.1827855]
[1751599286440,0.4564,109390.0,109380.0,0.73753824]
[1751599287241,0.4574,109390.0,109380.0,0.73753824]
[1751599287441,0.4584,109390.0,109380.0,0.73753824]
[1751599287947,0.53066721,109390.0,109380.0,0.73753824]
[1751599288546,0.71343601,109390.0,109380.0,0.73753824]
[1751599289146,0.96170068,109390.0,109380.0,0.4527855]